[Event "*** Titled Tuesday Blitz"]
[Site "Chess.com"]
[Date "2021.03.02"]
[Round "5"]
[White "Galileo22"]
[Black "Abund"]
[Result "0-1"]
[WhiteElo "2427"]
[BlackElo "2666"]
[TimeControl "180+1"]
[EndTime "10:56:07 PST"]
[Termination "Abund won by checkmate"]

1. d4 {[%clk 0:02:31.6]} 1... Nf6 {[%clk 0:02:59.2]} 2. Bg5 {[%clk 0:02:31.5]}
2... d5 {[%clk 0:02:53.5]} 3. Nd2 {[%clk 0:02:31.8]} 3... h6 {[%clk 0:02:49.7]}
4. Bh4 {[%clk 0:02:31.6]} 4... e6 {[%clk 0:02:46.7]} 5. Ngf3 {[%clk 0:02:27.9]}
5... c5 {[%clk 0:02:45.5]} 6. e3 {[%clk 0:02:14.7]} 6... Nc6 {[%clk 0:02:44.9]}
7. a3 {[%clk 0:02:13.2]} 7... a6 {[%clk 0:02:39.6]} 8. dxc5 {[%clk 0:02:11.9]}
8... Bxc5 {[%clk 0:02:39.2]} 9. b4 {[%clk 0:02:11.9]} 9... Be7 {[%clk
0:02:39.5]} 10. c4 {[%clk 0:02:07.1]} 10... O-O {[%clk 0:02:37.5]} 11. Be2
{[%clk 0:01:45]} 11... d4 {[%clk 0:02:33.6]} 12. exd4 {[%clk 0:01:27]} 12...
Nxd4 {[%clk 0:02:33.2]} 13. O-O {[%clk 0:01:24.6]} 13... Nxe2+ {[%clk
0:02:24.4]} 14. Qxe2 {[%clk 0:01:24.3]} 14... b6 {[%clk 0:02:23.7]} 15. Nb3
{[%clk 0:01:18.9]} 15... Bb7 {[%clk 0:02:22.6]} 16. Rfd1 {[%clk 0:01:17.6]}
16... Qc8 {[%clk 0:02:19.7]} 17. Ne5 {[%clk 0:01:13.9]} 17... Re8 {[%clk
0:02:14.9]} 18. Rac1 {[%clk 0:01:07.1]} 18... Ne4 {[%clk 0:01:43.3]} 19. Bxe7
{[%clk 0:01:05.6]} 19... Rxe7 {[%clk 0:01:43.6]} 20. f3 {[%clk 0:00:59.8]} 20...
Nf6 {[%clk 0:01:40.8]} 21. Qd2 {[%clk 0:00:49.5]} 21... Qc7 {[%clk 0:01:28.6]}
22. Qd6 {[%clk 0:00:48.5]} 22... Rc8 {[%clk 0:01:02.2]} 23. a4 {[%clk
0:00:33.3]} 23... Ne8 {[%clk 0:00:51.1]} 24. Qd4 {[%clk 0:00:22.7]} 24... f6
{[%clk 0:00:43.8]} 25. Ng6 {[%clk 0:00:21.5]} 25... Rf7 {[%clk 0:00:39.7]} 26.
a5 {[%clk 0:00:20.4]} 26... bxa5 {[%clk 0:00:36.8]} 27. Nxa5 {[%clk 0:00:20.3]}
27... Ba8 {[%clk 0:00:32.6]} 28. Nh4 {[%clk 0:00:18.8]} 28... g5 {[%clk
0:00:30.8]} 29. Ng6 {[%clk 0:00:16.5]} 29... Rg7 {[%clk 0:00:24.5]} 30. Nh4
{[%clk 0:00:05]} 30... gxh4 {[%clk 0:00:24]} 31. Kf2 {[%clk 0:00:04.4]} 31...
Qxh2 {[%clk 0:00:22.4]} 32. Rg1 {[%clk 0:00:04.8]} 32... h3 {[%clk 0:00:18.9]}
33. Ke3 {[%clk 0:00:04.2]} 33... hxg2 {[%clk 0:00:18.5]} 34. Kf2 {[%clk
0:00:03.8]} 34... Qe5 {[%clk 0:00:14.9]} 35. Qxe5 {[%clk 0:00:04]} 35... fxe5
{[%clk 0:00:15.8]} 36. Rxg2 {[%clk 0:00:04.4]} 36... Rxg2+ {[%clk 0:00:16.4]}
37. Kxg2 {[%clk 0:00:05.3]} 37... e4 {[%clk 0:00:17.1]} 38. fxe4 {[%clk
0:00:05.2]} 38... Bxe4+ {[%clk 0:00:17.7]} 39. Kf2 {[%clk 0:00:06.1]} 39... Nd6
{[%clk 0:00:17.7]} 40. Ke3 {[%clk 0:00:06.3]} 40... Bf5 {[%clk 0:00:17.7]} 41.
Kd4 {[%clk 0:00:05.8]} 41... Kf7 {[%clk 0:00:17.2]} 42. Ke5 {[%clk 0:00:05.9]}
42... Ke7 {[%clk 0:00:17.3]} 43. c5 {[%clk 0:00:05.3]} 43... Nf7+ {[%clk
0:00:17.7]} 44. Kd4 {[%clk 0:00:05]} 44... Kf6 {[%clk 0:00:17]} 45. Kc3 {[%clk
0:00:05]} 45... h5 {[%clk 0:00:16.8]} 46. Rf1 {[%clk 0:00:04.4]} 46... h4 {[%clk
0:00:16.7]} 47. Kc4 {[%clk 0:00:04.8]} 47... Ne5+ {[%clk 0:00:16.7]} 48. Kd4
{[%clk 0:00:04.1]} 48... h3 {[%clk 0:00:17.6]} 49. Ke3 {[%clk 0:00:04]} 49... h2
{[%clk 0:00:16.8]} 50. Kf4 {[%clk 0:00:03.9]} 50... Rg8 {[%clk 0:00:15.5]} 51.
Nb7 {[%clk 0:00:02.9]} 51... Rg1 {[%clk 0:00:14.5]} 52. Rxg1 {[%clk 0:00:01.8]}
52... hxg1=Q {[%clk 0:00:14.6]} 53. Nd6 {[%clk 0:00:02.7]} 53... Qf2# {[%clk
0:00:14.3]} 0-1

[Event "*** Titled Tuesday Blitz"]
[Site "Chess.com"]
[Date "2021.03.02"]
[Round "5"]
[White "andrewtnb"]
[Black "woodhy"]
[Result "1-0"]
[WhiteElo "2319"]
[BlackElo "2456"]
[TimeControl "180+1"]
[EndTime "10:56:08 PST"]
[Termination "andrewtnb won by checkmate"]

1. d4 {[%clk 0:03:00.9]} 1... e6 {[%clk 0:03:00]} 2. c4 {[%clk 0:02:59.7]} 2...
Nf6 {[%clk 0:02:59.6]} 3. Nc3 {[%clk 0:02:59.3]} 3... Bb4 {[%clk 0:02:57.1]} 4.
e3 {[%clk 0:02:58.5]} 4... c5 {[%clk 0:02:50.1]} 5. Ne2 {[%clk 0:02:58.2]} 5...
cxd4 {[%clk 0:02:47.1]} 6. exd4 {[%clk 0:02:57.9]} 6... b6 {[%clk 0:02:46.9]} 7.
a3 {[%clk 0:02:57.2]} 7... Be7 {[%clk 0:02:45.3]} 8. Nf4 {[%clk 0:02:37.4]} 8...
Bb7 {[%clk 0:02:44.2]} 9. d5 {[%clk 0:02:30.8]} 9... e5 {[%clk 0:02:39.8]} 10.
Nd3 {[%clk 0:02:20.5]} 10... d6 {[%clk 0:02:38.8]} 11. Be2 {[%clk 0:02:02.4]}
11... O-O {[%clk 0:02:35.8]} 12. O-O {[%clk 0:02:02.4]} 12... Nbd7 {[%clk
0:02:31]} 13. a4 {[%clk 0:01:55.4]} 13... Rc8 {[%clk 0:02:29]} 14. b3 {[%clk
0:01:55]} 14... e4 {[%clk 0:01:49.1]} 15. Nf4 {[%clk 0:01:41.8]} 15... Re8
{[%clk 0:01:48.3]} 16. Be3 {[%clk 0:01:37.5]} 16... Bf8 {[%clk 0:01:47.4]} 17.
a5 {[%clk 0:01:35.8]} 17... Ra8 {[%clk 0:01:40.6]} 18. axb6 {[%clk 0:01:27.4]}
18... axb6 {[%clk 0:01:41.5]} 19. Nb5 {[%clk 0:01:27.7]} 19... Nc5 {[%clk
0:01:37.6]} 20. Qc2 {[%clk 0:01:24.9]} 20... Qd7 {[%clk 0:01:29.9]} 21. b4
{[%clk 0:01:20.3]} 21... Na6 {[%clk 0:01:28.2]} 22. Qb2 {[%clk 0:01:10.4]} 22...
Nc7 {[%clk 0:01:24.8]} 23. Na7 {[%clk 0:01:01.5]} 23... Reb8 {[%clk 0:01:15.7]}
24. Bxb6 {[%clk 0:00:59.5]} 24... Bxd5 {[%clk 0:01:11.1]} 25. Bxc7 {[%clk
0:00:52.9]} 25... Qxc7 {[%clk 0:01:12]} 26. Nb5 {[%clk 0:00:48.3]} 26... Rxb5
{[%clk 0:01:11.7]} 27. Nxd5 {[%clk 0:00:44.3]} 27... Nxd5 {[%clk 0:01:04.2]} 28.
Rxa8 {[%clk 0:00:36.1]} 28... Rxb4 {[%clk 0:01:02.8]} 29. Qd2 {[%clk 0:00:26.7]}
29... Qb7 {[%clk 0:00:28.9]} 30. Qxd5 {[%clk 0:00:24.6]} 30... Qxd5 {[%clk
0:00:25.5]} 31. cxd5 {[%clk 0:00:24.7]} 31... Rb2 {[%clk 0:00:26.4]} 32. Ba6
{[%clk 0:00:20.6]} 32... g6 {[%clk 0:00:25.4]} 33. Re1 {[%clk 0:00:19.8]} 33...
Rb4 {[%clk 0:00:22.9]} 34. f3 {[%clk 0:00:17.9]} 34... f5 {[%clk 0:00:20.6]} 35.
fxe4 {[%clk 0:00:17.8]} 35... fxe4 {[%clk 0:00:21.5]} 36. Rf1 {[%clk 0:00:17.9]}
36... Kg7 {[%clk 0:00:19.6]} 37. Raxf8 {[%clk 0:00:17.7]} 37... e3 {[%clk
0:00:19.9]} 38. Be2 {[%clk 0:00:17.1]} 38... Rb2 {[%clk 0:00:19.6]} 39. R8f7+
{[%clk 0:00:13.7]} 39... Kh6 {[%clk 0:00:19.3]} 40. Bf3 {[%clk 0:00:12.9]} 40...
Rd2 {[%clk 0:00:19.4]} 41. Re1 {[%clk 0:00:12.7]} 41... Rd3 {[%clk 0:00:19.6]}
42. Re7 {[%clk 0:00:11]} 42... Kg5 {[%clk 0:00:19.7]} 43. R7xe3 {[%clk
0:00:10.8]} 43... Rd4 {[%clk 0:00:20]} 44. R1e2 {[%clk 0:00:10.7]} 44... h5
{[%clk 0:00:20.2]} 45. Kf2 {[%clk 0:00:10.7]} 45... Kf6 {[%clk 0:00:19.9]} 46.
g3 {[%clk 0:00:09.6]} 46... h4 {[%clk 0:00:19.5]} 47. gxh4 {[%clk 0:00:09.3]}
47... Rxh4 {[%clk 0:00:19]} 48. Kg3 {[%clk 0:00:09.9]} 48... Rd4 {[%clk
0:00:17.8]} 49. h4 {[%clk 0:00:10.2]} 49... Kf5 {[%clk 0:00:17.2]} 50. Re6
{[%clk 0:00:09.1]} 50... g5 {[%clk 0:00:15.6]} 51. hxg5 {[%clk 0:00:08.5]} 51...
Kxg5 {[%clk 0:00:15.8]} 52. Rxd6 {[%clk 0:00:08.7]} 52... Kf5 {[%clk 0:00:11.3]}
53. Rde6 {[%clk 0:00:07.9]} 53... Rxd5 {[%clk 0:00:10.1]} 54. Bxd5 {[%clk
0:00:06.8]} 54... Kg5 {[%clk 0:00:10.3]} 55. R2e5# {[%clk 0:00:07.1]} 1-0

[Event "*** Titled Tuesday Blitz"]
[Site "Chess.com"]
[Date "2021.03.02"]
[Round "5"]
[White "Flawless_Fighter"]
[Black "Diamantidis_13"]
[Result "0-1"]
[WhiteElo "2629"]
[BlackElo "2440"]
[TimeControl "180+1"]
[EndTime "10:56:10 PST"]
[Termination "Diamantidis_13 won by resignation"]

1. d4 {[%clk 0:02:53.1]} 1... Nf6 {[%clk 0:02:59.4]} 2. Nc3 {[%clk 0:02:28.9]}
2... d5 {[%clk 0:02:58.6]} 3. Bf4 {[%clk 0:02:28.2]} 3... a6 {[%clk 0:02:40.2]}
4. e3 {[%clk 0:02:26.5]} 4... c5 {[%clk 0:02:40.4]} 5. dxc5 {[%clk 0:02:19]}
5... Nc6 {[%clk 0:02:38.7]} 6. a3 {[%clk 0:02:10.2]} 6... g6 {[%clk 0:02:13]} 7.
Nf3 {[%clk 0:01:21.8]} 7... Nh5 {[%clk 0:02:09.5]} 8. Qxd5 {[%clk 0:01:13.2]}
8... Nxf4 {[%clk 0:02:01]} 9. Qxd8+ {[%clk 0:01:11.5]} 9... Nxd8 {[%clk
0:01:59.6]} 10. exf4 {[%clk 0:01:12.3]} 10... Bg7 {[%clk 0:01:58.9]} 11. Bc4
{[%clk 0:01:02]} 11... Bxc3+ {[%clk 0:01:56.5]} 12. bxc3 {[%clk 0:01:02.2]}
12... Be6 {[%clk 0:01:53.5]} 13. Ne5 {[%clk 0:00:53]} 13... Bxc4 {[%clk
0:01:51.8]} 14. Nxc4 {[%clk 0:00:53]} 14... Ne6 {[%clk 0:01:52.3]} 15. c6 {[%clk
0:00:47.6]} 15... bxc6 {[%clk 0:01:53.1]} 16. g3 {[%clk 0:00:45.7]} 16... O-O-O
{[%clk 0:01:45.9]} 17. Ke2 {[%clk 0:00:45.3]} 17... Kc7 {[%clk 0:01:45.7]} 18.
Rab1 {[%clk 0:00:42.1]} 18... Rd5 {[%clk 0:01:41.8]} 19. Ne5 {[%clk 0:00:37]}
19... f6 {[%clk 0:01:33.1]} 20. Nd3 {[%clk 0:00:35.4]} 20... Ra5 {[%clk
0:01:25.5]} 21. Rb3 {[%clk 0:00:35.3]} 21... Nc5 {[%clk 0:01:24.9]} 22. Nxc5
{[%clk 0:00:32.5]} 22... Rxc5 {[%clk 0:01:25.8]} 23. Rhb1 {[%clk 0:00:32.3]}
23... Kd6 {[%clk 0:01:16.3]} 24. Rd1+ {[%clk 0:00:31]} 24... Ke6 {[%clk
0:01:15.5]} 25. Rd3 {[%clk 0:00:29.8]} 25... h5 {[%clk 0:01:11.2]} 26. Rb7
{[%clk 0:00:29.2]} 26... h4 {[%clk 0:01:08.1]} 27. Re3+ {[%clk 0:00:29.1]} 27...
Kf5 {[%clk 0:01:07.5]} 28. Rbxe7 {[%clk 0:00:26.6]} 28... hxg3 {[%clk
0:01:06.8]} 29. hxg3 {[%clk 0:00:27.5]} 29... g5 {[%clk 0:01:00.2]} 30. fxg5
{[%clk 0:00:26.3]} 30... fxg5 {[%clk 0:00:58.9]} 31. Rf7+ {[%clk 0:00:25.2]}
31... Kg4 {[%clk 0:00:53.5]} 32. Ra7 {[%clk 0:00:21.2]} 32... Ra5 {[%clk
0:00:46.7]} 33. c4 {[%clk 0:00:21]} 33... Ra4 {[%clk 0:00:39.6]} 34. c5 {[%clk
0:00:20]} 34... Rc4 {[%clk 0:00:38.3]} 35. Kd2 {[%clk 0:00:19.7]} 35... Rh2
{[%clk 0:00:31.6]} 36. Re2 {[%clk 0:00:16]} 36... Rxc5 {[%clk 0:00:26.6]} 37.
Rxa6 {[%clk 0:00:16.1]} 37... Kf3 {[%clk 0:00:27]} 38. Re3+ {[%clk 0:00:08.5]}
38... Kxf2 {[%clk 0:00:26.8]} 39. Re2+ {[%clk 0:00:06.9]} 39... Kxg3 {[%clk
0:00:26.9]} 40. Rxh2 {[%clk 0:00:07.2]} 40... Kxh2 {[%clk 0:00:27.8]} 41. Ra8
{[%clk 0:00:04.8]} 41... g4 {[%clk 0:00:23.8]} 42. Rh8+ {[%clk 0:00:05.3]} 42...
Kg2 {[%clk 0:00:24.1]} 43. Kd3 {[%clk 0:00:03.6]} 43... Ra5 {[%clk 0:00:20.4]}
44. Ke3 {[%clk 0:00:02.6]} 44... Rxa3+ {[%clk 0:00:20.4]} 45. Kd4 {[%clk
0:00:02.6]} 45... g3 {[%clk 0:00:20.4]} 46. c4 {[%clk 0:00:02.2]} 46... Kf2
{[%clk 0:00:20.2]} 47. Rf8+ {[%clk 0:00:02.4]} 47... Rf3 {[%clk 0:00:20.3]} 48.
Rg8 {[%clk 0:00:02.5]} 48... g2 {[%clk 0:00:20.6]} 49. Kc5 {[%clk 0:00:01.3]}
49... Rg3 {[%clk 0:00:20.5]} 50. Rf8+ {[%clk 0:00:01.7]} 50... Ke2 {[%clk
0:00:20.9]} 51. Re8+ {[%clk 0:00:02]} 51... Kd2 {[%clk 0:00:21.3]} 52. Rd8+
{[%clk 0:00:02.4]} 52... Kc2 {[%clk 0:00:21.5]} 53. Ra8 {[%clk 0:00:02.3]} 53...
g1=Q+ {[%clk 0:00:20.7]} 0-1

[Event "*** Titled Tuesday Blitz"]
[Site "Chess.com"]
[Date "2021.03.02"]
[Round "5"]
[White "Kaslask"]
[Black "WPWPWP-2015"]
[Result "0-1"]
[WhiteElo "2280"]
[BlackElo "2475"]
[TimeControl "180+1"]
[EndTime "10:56:13 PST"]
[Termination "WPWPWP-2015 won by resignation"]

1. c4 {[%clk 0:03:00.9]} 1... e5 {[%clk 0:02:55.4]} 2. Nc3 {[%clk 0:02:59.4]}
2... Nf6 {[%clk 0:02:54.3]} 3. Nf3 {[%clk 0:02:58.7]} 3... Nc6 {[%clk
0:02:53.1]} 4. d3 {[%clk 0:02:58.2]} 4... Bb4 {[%clk 0:02:51.4]} 5. Bd2 {[%clk
0:02:57.5]} 5... O-O {[%clk 0:02:50.1]} 6. g3 {[%clk 0:02:57.4]} 6... a5 {[%clk
0:02:49.1]} 7. Bg2 {[%clk 0:02:57.2]} 7... Re8 {[%clk 0:02:48.8]} 8. O-O {[%clk
0:02:56.3]} 8... d6 {[%clk 0:02:46.8]} 9. Bg5 {[%clk 0:02:51]} 9... Bxc3 {[%clk
0:02:42.8]} 10. bxc3 {[%clk 0:02:49.7]} 10... h6 {[%clk 0:02:43.3]} 11. Bd2
{[%clk 0:02:43.2]} 11... Be6 {[%clk 0:02:32.5]} 12. e4 {[%clk 0:02:42.4]} 12...
Qd7 {[%clk 0:02:29.4]} 13. Nh4 {[%clk 0:02:40.8]} 13... Bh3 {[%clk 0:02:23.1]}
14. Qc1 {[%clk 0:02:21.3]} 14... Kh7 {[%clk 0:02:18.5]} 15. f4 {[%clk
0:02:12.5]} 15... Bxg2 {[%clk 0:02:14.2]} 16. Kxg2 {[%clk 0:02:11.2]} 16... a4
{[%clk 0:02:08.4]} 17. f5 {[%clk 0:02:01.3]} 17... Qe7 {[%clk 0:02:07.2]} 18. h3
{[%clk 0:02:00.3]} 18... Reb8 {[%clk 0:02:04.1]} 19. Nf3 {[%clk 0:01:58.3]}
19... Kg8 {[%clk 0:02:02.5]} 20. g4 {[%clk 0:01:56.4]} 20... Kf8 {[%clk
0:02:02.5]} 21. g5 {[%clk 0:01:39.6]} 21... hxg5 {[%clk 0:02:01.5]} 22. Bxg5
{[%clk 0:01:39.3]} 22... Ke8 {[%clk 0:02:01.5]} 23. h4 {[%clk 0:01:30.5]} 23...
Kd7 {[%clk 0:02:00]} 24. Rb1 {[%clk 0:01:30.4]} 24... b6 {[%clk 0:01:57.4]} 25.
Nh2 {[%clk 0:01:29.4]} 25... Qf8 {[%clk 0:01:49.6]} 26. Qe3 {[%clk 0:01:19.3]}
26... Nh5 {[%clk 0:01:43.4]} 27. Qf3 {[%clk 0:01:17.8]} 27... Qh8 {[%clk
0:01:40]} 28. f6 {[%clk 0:01:13.6]} 28... gxf6 {[%clk 0:01:30.3]} 29. Qf5+
{[%clk 0:01:06.9]} 29... Ke7 {[%clk 0:01:20.2]} 30. Ng4 {[%clk 0:01:01.9]} 30...
Rg8 {[%clk 0:01:17.2]} 31. Nxf6 {[%clk 0:00:53.3]} 31... Qxf6 {[%clk 0:00:48.3]}
32. Qxf6+ {[%clk 0:00:49.4]} 32... Nxf6 {[%clk 0:00:46.8]} 33. Rxf6 {[%clk
0:00:49]} 33... Raf8 {[%clk 0:00:29.3]} 34. Rbf1 {[%clk 0:00:44.1]} 34... Ke8
{[%clk 0:00:28.7]} 35. Kh3 {[%clk 0:00:43.7]} 35... Nd8 {[%clk 0:00:27.7]} 36.
Bh6 {[%clk 0:00:36.1]} 36... Ne6 {[%clk 0:00:25.9]} 37. Bxf8 {[%clk 0:00:35.7]}
37... Rxf8 {[%clk 0:00:23.9]} 38. Rxe6+ {[%clk 0:00:35.5]} 38... fxe6 {[%clk
0:00:23.3]} 39. Rxf8+ {[%clk 0:00:35.2]} 39... Kxf8 {[%clk 0:00:22.8]} 40. Kg4
{[%clk 0:00:35.2]} 40... Kg7 {[%clk 0:00:21.3]} 41. Kg5 {[%clk 0:00:35.2]} 41...
Kf7 {[%clk 0:00:20.5]} 42. h5 {[%clk 0:00:35.2]} 42... c6 {[%clk 0:00:16.6]} 43.
h6 {[%clk 0:00:33.8]} 43... d5 {[%clk 0:00:12.2]} 44. h7 {[%clk 0:00:33]} 44...
Kg7 {[%clk 0:00:12.4]} 45. h8=Q+ {[%clk 0:00:31.3]} 45... Kxh8 {[%clk
0:00:12.4]} 46. Kf6 {[%clk 0:00:31.5]} 46... d4 {[%clk 0:00:10.8]} 47. cxd4
{[%clk 0:00:30.4]} 47... exd4 {[%clk 0:00:11]} 48. Kxe6 {[%clk 0:00:30.5]} 48...
b5 {[%clk 0:00:10.9]} 49. cxb5 {[%clk 0:00:23.2]} 49... cxb5 {[%clk 0:00:11.8]}
50. Kd5 {[%clk 0:00:23.1]} 50... b4 {[%clk 0:00:12.1]} 51. Kc4 {[%clk 0:00:23]}
51... b3 {[%clk 0:00:12.5]} 52. e5 {[%clk 0:00:09.1]} 52... bxa2 {[%clk
0:00:10]} 53. e6 {[%clk 0:00:09.1]} 53... a1=Q {[%clk 0:00:09.1]} 54. e7 {[%clk
0:00:09.7]} 54... Qc3+ {[%clk 0:00:08.2]} 55. Kd5 {[%clk 0:00:09.7]} 55... Qb3+
{[%clk 0:00:07.4]} 56. Kd6 {[%clk 0:00:09.6]} 56... Qb5 {[%clk 0:00:07.2]} 57.
Ke6 {[%clk 0:00:09.2]} 57... Qe8 {[%clk 0:00:06.8]} 58. Kf6 {[%clk 0:00:09.4]}
58... Kg8 {[%clk 0:00:07]} 0-1

[Event "*** Titled Tuesday Blitz"]
[Site "Chess.com"]
[Date "2021.03.02"]
[Round "5"]
[White "Gerryisplaying"]
[Black "DvaHrasta"]
[Result "0-1"]
[WhiteElo "2235"]
[BlackElo "2416"]
[TimeControl "180+1"]
[EndTime "10:56:14 PST"]
[Termination "DvaHrasta won on time"]

1. d4 {[%clk 0:03:00.9]} 1... Nf6 {[%clk 0:02:58.8]} 2. Bg5 {[%clk 0:03:00.5]}
2... c5 {[%clk 0:02:57]} 3. d5 {[%clk 0:03:00.2]} 3... Qb6 {[%clk 0:02:55.9]} 4.
Nc3 {[%clk 0:02:57.8]} 4... Qxb2 {[%clk 0:02:55.6]} 5. Bd2 {[%clk 0:02:54.8]}
5... Qb6 {[%clk 0:02:55.3]} 6. e4 {[%clk 0:02:52.2]} 6... e5 {[%clk 0:02:55.2]}
7. f4 {[%clk 0:02:48.8]} 7... d6 {[%clk 0:02:54.8]} 8. Nf3 {[%clk 0:02:48.3]}
8... Bg4 {[%clk 0:02:54.3]} 9. Rb1 {[%clk 0:02:38.2]} 9... Qc7 {[%clk 0:02:54]}
10. Nb5 {[%clk 0:02:15.2]} 10... Qd8 {[%clk 0:02:49.1]} 11. fxe5 {[%clk
0:02:15.3]} 11... dxe5 {[%clk 0:02:48.8]} 12. Be2 {[%clk 0:02:15.9]} 12... a6
{[%clk 0:02:43.4]} 13. Nc3 {[%clk 0:02:15.2]} 13... Bxf3 {[%clk 0:02:37.3]} 14.
Bxf3 {[%clk 0:02:16.1]} 14... b5 {[%clk 0:02:35]} 15. O-O {[%clk 0:02:08.7]}
15... c4 {[%clk 0:02:34.7]} 16. Be3 {[%clk 0:02:05.9]} 16... Nbd7 {[%clk
0:02:32.3]} 17. Qe1 {[%clk 0:01:52.5]} 17... Qa5 {[%clk 0:02:19.6]} 18. Bd2
{[%clk 0:01:21.4]} 18... b4 {[%clk 0:02:15.3]} 19. Ne2 {[%clk 0:01:20]} 19... c3
{[%clk 0:02:13.5]} 20. Be3 {[%clk 0:01:20.3]} 20... Qxa2 {[%clk 0:02:07.7]} 21.
Qc1 {[%clk 0:01:05.7]} 21... Qc4 {[%clk 0:02:04.2]} 22. Ng3 {[%clk 0:01:02.3]}
22... Bc5 {[%clk 0:01:54.1]} 23. Be2 {[%clk 0:01:01.1]} 23... Bxe3+ {[%clk
0:01:51.4]} 24. Qxe3 {[%clk 0:01:02]} 24... Qc5 {[%clk 0:01:34.7]} 25. Qxc5
{[%clk 0:00:58.1]} 25... Nxc5 {[%clk 0:01:33.8]} 26. Rxb4 {[%clk 0:00:59]} 26...
O-O {[%clk 0:01:31.2]} 27. Rc4 {[%clk 0:00:58.7]} 27... Rfc8 {[%clk 0:01:27.4]}
28. Bf3 {[%clk 0:00:50.5]} 28... Ncd7 {[%clk 0:01:22.5]} 29. Rxc8+ {[%clk
0:00:47.5]} 29... Rxc8 {[%clk 0:01:21.8]} 30. Nf5 {[%clk 0:00:48.4]} 30... Ra8
{[%clk 0:01:16]} 31. Ra1 {[%clk 0:00:47.1]} 31... a5 {[%clk 0:01:13.3]} 32. Ra3
{[%clk 0:00:45.7]} 32... Nc5 {[%clk 0:01:07.5]} 33. d6 {[%clk 0:00:33.7]} 33...
a4 {[%clk 0:01:00.7]} 34. Ne7+ {[%clk 0:00:22.2]} 34... Kf8 {[%clk 0:01:00.2]}
35. Nc6 {[%clk 0:00:23.1]} 35... Ke8 {[%clk 0:00:46.5]} 36. Nxe5 {[%clk
0:00:22.6]} 36... Nfxe4 {[%clk 0:00:41.7]} 37. d7+ {[%clk 0:00:19.5]} 37... Ke7
{[%clk 0:00:38.5]} 38. d8=Q+ {[%clk 0:00:13.8]} 38... Kxd8 {[%clk 0:00:34.1]}
39. Nxf7+ {[%clk 0:00:13.4]} 39... Ke7 {[%clk 0:00:32.9]} 40. Ng5 {[%clk
0:00:13.5]} 40... Nxg5 {[%clk 0:00:20.5]} 41. Bxa8 {[%clk 0:00:14.4]} 41... Kd6
{[%clk 0:00:20.7]} 42. Rxc3 {[%clk 0:00:10.8]} 42... Nge6 {[%clk 0:00:19.6]} 43.
Ra3 {[%clk 0:00:09.9]} 43... Nd4 {[%clk 0:00:17.9]} 44. c3 {[%clk 0:00:08.2]}
44... Nb5 {[%clk 0:00:17.3]} 45. Ra1 {[%clk 0:00:08]} 45... Nxc3 {[%clk
0:00:16.9]} 46. Bf3 {[%clk 0:00:07.9]} 46... Nb3 {[%clk 0:00:14.9]} 47. Ra3
{[%clk 0:00:06.9]} 47... Kc5 {[%clk 0:00:14.9]} 48. Bg4 {[%clk 0:00:04.8]} 48...
Kb4 {[%clk 0:00:14.6]} 49. Rxb3+ {[%clk 0:00:03.3]} 49... axb3 {[%clk
0:00:14.5]} 50. Bf5 {[%clk 0:00:04]} 50... h6 {[%clk 0:00:13.8]} 51. g4 {[%clk
0:00:02.7]} 51... Nd5 {[%clk 0:00:12.2]} 52. h4 {[%clk 0:00:02.2]} 52... Kc3
{[%clk 0:00:12.1]} 53. g5 {[%clk 0:00:01.7]} 53... Ne3 {[%clk 0:00:11.3]} 54.
Bb1 {[%clk 0:00:01.2]} 54... h5 {[%clk 0:00:10.8]} 55. Kf2 {[%clk 0:00:01.2]}
55... Nc2 {[%clk 0:00:10.8]} 0-1